bitfinex/quotes_SOLUSD_20250527
["timestamp","ask_amount","ask_price","bid_price","bid_amount"]
[1748352625189,6271.50526921,179.0,178.99,10.0]
[1748352625391,6297.54358964,179.0,178.99,61.9]
[1748352625593,6271.50526921,179.0,178.99,61.9]
[1748352626105,6271.50526921,179.0,178.99,10.0]
[1748352626271,6297.54358964,179.0,178.99,49.6]
[1748352626469,6271.50526921,179.0,178.99,49.6]
[1748352626893,6297.54358964,179.0,178.99,49.6]
[1748352627197,6270.94661,179.0,178.99,120.43013086]
[1748352627388,6270.94661,179.0,178.99,94.39181043]
[1748352627699,6271.50526921,179.0,178.99,94.39181043]
[1748352627901,6271.50526921,179.0,178.99,54.64964886]
[1748352628078,6271.50526921,179.0,178.99,87.88]
[1748352628493,6270.94661,179.0,178.99,132.71013086]
[1748352628711,6270.94661,179.0,178.99,106.71013086]
[1748352629176,6270.94661,179.0,178.99,80.52964886]
[1748352629371,6270.94661,179.0,178.99,81.02964886]
[1748352630296,6270.94661,179.0,178.99,112.79703515]
[1748352630599,6117.2975706,179.0,178.99,122.79703515]
[1748352630796,6117.2975706,179.0,178.99,130.07598701]
[1748352631098,6103.3566042,179.0,178.99,130.07598701]
[1748352631692,6103.3566042,179.0,178.99,130.03598701]
[1748352632797,6079.4445042,179.0,178.99,137.01734126]
[1748352632998,6031.7167896,179.0,178.99,141.48378933]
[1748352633201,5864.1267838,179.0,178.99,141.48378933]
[1748352633391,5850.1858174,179.0,178.99,141.48378933]
[1748352633590,5836.244851,179.0,178.99,141.48378933]
[1748352633782,5822.3038846,179.0,178.99,141.48378933]
[1748352633985,5808.36602898,179.0,178.99,115.4454689]
[1748352634182,5770.51607336,179.0,178.99,184.30210976]
[1748352634385,5722.18592373,179.0,178.99,184.30210976]
[1748352634583,5693.19627188,179.0,178.99,184.30210976]
[1748352634904,5250.98661442,179.0,178.99,218.24390976]
[1748352635095,5201.14661442,179.0,178.99,218.24390976]
[1748352635300,5180.0887588,179.0,178.99,218.24390976]
[1748352635690,5151.9487588,179.0,178.99,158.67558933]
[1748352635887,5151.9487588,179.0,178.99,141.89558933]
[1748352636101,4988.73027599,179.0,178.99,141.89558933]
[1748352636397,4974.79242037,179.0,178.99,167.93390976]
[1748352636604,4960.85456475,179.0,178.99,141.89558933]
[1748352636801,4923.14670913,179.0,178.99,141.89558933]
[1748352636981,4890.64670913,179.0,178.99,141.89558933]
[1748352637184,4876.71040838,179.0,178.99,141.89558933]
[1748352637384,4856.25596999,179.0,178.99,141.89558933]
[1748352637592,4842.18386999,179.0,178.99,141.89558933]
[1748352637792,4828.24756924,179.0,178.99,167.93390976]
[1748352637997,4821.12756924,179.0,178.99,167.93390976]
[1748352638194,4796.82203068,179.0,178.99,167.93390976]
[1748352638406,4789.70203068,179.0,178.99,167.93390976]
[1748352638609,4772.97846978,179.0,178.99,167.93390976]
[1748352638788,4738.58773064,179.0,178.99,76.19510733]
[1748352638991,4738.58773064,179.0,178.99,115.67510733]
[1748352639190,4595.95948547,179.0,178.99,141.85558933]
[1748352639498,4553.31472081,179.0,178.99,141.55342776]
[1748352639806,4539.37842006,179.0,178.99,141.55342776]
[1748352640306,4525.30001931,179.0,178.99,141.55342776]
[1748352640483,4490.90858092,179.0,178.99,141.48590782]
[1748352640809,4477.06658092,179.0,178.99,141.48590782]
[1748352640988,4463.03458092,179.0,178.99,141.48590782]
[1748352641303,4449.09750277,179.0,178.99,133.86934492]
[1748352641505,4449.09750277,179.0,178.99,140.64101766]
[1748352641708,4430.65776803,179.0,178.99,140.64101766]
[1748352641884,4372.28890808,179.0,178.99,166.67933809]
[1748352642204,4199.15593149,179.0,178.99,166.67933809]
[1748352642409,4167.88851586,179.0,178.99,166.67933809]
[1748352642597,4112.06143771,179.0,178.99,217.03933809]
[1748352642913,3807.69987235,179.0,178.99,447.93933809]
[1748352643083,3656.51411889,179.0,178.99,453.78268704]
[1748352643287,3585.13248946,179.0,178.99,447.32862534]
[1748352643607,3450.81309567,179.0,178.99,147.59055631]
[1748352643902,3408.40309567,179.0,178.99,127.25312165]
[1748352644093,3394.33099567,179.0,178.99,127.25312165]
[1748352644289,3363.53345411,179.0,178.99,81.59506611]
[1748352644625,3335.36345411,179.0,178.99,81.59506611]
[1748352644911,3321.43259311,179.0,178.99,115.11312165]
[1748352645087,3321.43259311,179.0,178.99,87.81312165]
[1748352645287,3307.50173167,179.0,178.99,127.23312165]
[1748352645715,3293.57087023,179.0,178.99,133.27722768]
[1748352645894,3160.37626922,179.0,178.99,98.37506611]
[1748352646100,3146.44626922,179.0,178.99,150.05722768]
[1748352646292,3132.51540778,179.0,178.99,98.51722768]
[1748352646490,3132.51540778,179.0,178.99,150.05722768]
[1748352646693,3118.58454634,179.0,178.99,183.63722768]
[1748352646889,3065.20720779,179.0,178.99,183.63722768]
[1748352647390,3033.02620779,179.0,178.99,183.63722768]
[1748352647594,3011.42480779,179.0,178.99,183.63722768]
[1748352647790,3011.42480779,179.0,178.99,187.61553924]
[1748352648004,2997.48880779,179.0,178.99,270.31553924]
[1748352648200,2997.48880779,179.0,178.99,270.31564911]
[1748352648400,2983.58880779,179.0,178.99,232.75722768]
[1748352648609,2955.41280779,179.0,178.99,185.19572093]
[1748352648792,2822.21820678,179.0,178.99,185.19337275]
[1748352649113,2808.28190603,179.0,178.99,236.71338552]
[1748352649296,2773.89746764,179.0,178.99,236.71338552]
[1748352649521,2773.89746764,179.0,178.99,236.71310084]
[1748352649522,2773.68617945,179.0,178.99,236.71310084]
[1748352649804,2656.05017945,179.0,178.99,236.71293586]
[1748352650052,2627.88017945,179.0,178.99,236.71293141]
[1748352650194,2599.70817945,179.0,178.99,193.33722768]
[1748352650401,2599.70817945,179.0,178.99,215.34326611]
[1748352650607,2589.14310945,179.0,178.99,175.96326611]
[1748352650802,2589.14310945,179.0,178.99,215.34326611]
[1748352651018,2552.61310945,179.0,178.99,175.96326611]
[1748352651313,2552.61310945,179.0,178.99,215.48542768]
[1748352651521,2538.68110945,179.0,178.99,215.48542768]
[1748352651712,2524.74853458,179.0,178.99,209.58348322]
[1748352651899,2391.55393357,179.0,178.99,213.56381344]
[1748352652217,2377.62393357,179.0,178.99,143.66348322]
[1748352652518,2343.23949518,179.0,178.99,147.64344279]
[1748352652692,2329.30949518,179.0,178.99,126.88348322]
[1748352652894,2326.35339054,179.0,178.99,126.88348322]
[1748352653208,2310.42339054,179.0,178.99,143.66348322]
[1748352653411,2296.49339054,179.0,178.99,117.62516279]
[1748352653599,2244.71460874,179.0,178.99,151.20516279]
[1748352653790,2164.80352749,179.0,178.99,151.20516279]
[1748352654114,1934.55883666,179.0,178.99,184.17890516]
[1748352654423,1759.66076731,179.0,178.99,163.73167196]
[1748352654724,1707.65378606,179.0,178.99,163.73167196]
[1748352654926,1560.52918505,179.0,178.99,163.73167196]
[1748352655092,1520.7852038,179.0,178.99,117.72710725]
[1748352655388,1489.85822255,179.0,178.99,157.08710725]
[1748352655593,1475.95822255,179.0,178.99,157.08710725]
[1748352655895,1475.95822255,179.0,178.99,47.33335236]
[1748352655896,1452.11633501,179.0,178.99,47.33335236]
[1748352656224,1443.27433501,179.0,178.99,117.58516279]
[1748352656523,1408.16189662,179.0,178.99,117.58516279]
[1748352656727,1380.16189662,179.0,178.99,151.16516279]
[1748352656905,1350.28011482,179.0,178.99,151.16516279]
[1748352657109,1336.34711482,179.0,178.99,151.16516279]
[1748352657513,1322.41411482,179.0,178.99,151.16516279]
[1748352657693,1175.28951381,179.0,178.99,151.16516279]
[1748352657893,1161.35651381,179.0,178.99,151.16516279]
[1748352658427,1147.28106281,179.0,178.99,151.16516279]
[1748352658598,1100.85106281,179.0,178.99,151.16516279]
[1748352658798,1098.06439243,179.0,178.99,151.16516279]
[1748352659011,1084.13139243,179.0,178.99,233.86516279]
[1748352659199,1071.74139243,179.0,178.99,194.52516279]
[1748352659396,1026.12200544,179.0,178.99,47.33335236]
[1748352659621,1012.18865352,179.0,178.99,20.55335236]
[1748352659829,1012.18865352,179.0,178.99,16.08690429]
[1748352660045,1012.18865352,179.0,178.99,55.40690429]
[1748352660244,1038.16501854,179.0,178.99,10.5]
[1748352660399,1019.74725352,179.0,178.99,39.8202]
[1748352660604,1019.74725352,179.0,178.9,5.58971492]
[1748352660923,25.97636502,178.92,178.9,5.58971492]
[1748352661125,18.64964886,178.99,178.86,16.749016]
[1748352661126,25.97636502,178.91,178.87,5.59065242]
[1748352661348,30.76964886,178.99,178.82,5.59221563]
[1748352661349,25.97636502,178.88,178.82,5.59221563]
[1748352661547,25.97636502,178.86,178.83,39.32]
[1748352661723,25.97636502,178.87,178.84,5.59159024]
[1748352662045,6.52,178.88,178.85,39.32]
[1748352662221,6.52,178.88,178.87,26.0]
[1748352662415,6.52,178.88,178.87,39.3]
[1748352662825,6.433,178.93,178.87,39.3]
[1748352663030,25.97636502,178.91,178.9,26.0]
[1748352663337,6.433,178.93,178.9,65.3]
[1748352663543,6.433,178.93,178.91,0.55870978]
[1748352663846,1018.62165352,179.0,178.95,25.99000172]
[1748352664141,1018.62165352,179.0,178.96,39.3]
[1748352665136,1012.18865352,179.0,178.96,49.3]
[1748352665347,1012.18865352,179.0,178.97,10.0]
[1748352665523,1012.18865352,179.0,178.98,39.3]
[1748352665836,1012.18865352,179.0,178.99,5.58690429]
[1748352667543,1012.18865352,179.0,178.99,44.86690429]
[1748352668528,1012.18865352,179.0,178.99,5.58690429]
[1748352668726,1012.18865352,179.0,178.99,44.86690429]
[1748352669222,1012.18865352,179.0,178.99,39.28]
[1748352669544,1012.18865352,179.0,178.99,44.86690429]
[1748352670627,1012.18865352,179.0,178.99,5.58690429]
[1748352670827,1012.18865352,179.0,178.99,44.84690429]
[1748352671228,1038.16501854,179.0,178.99,26.0]
[1748352671544,1012.18865352,179.0,178.99,39.26]
[1748352671727,1012.18865352,179.0,178.99,44.84690429]
[1748352672528,1038.16501854,179.0,178.99,44.84690429]
[1748352672731,1038.16501854,179.0,178.96,26.0]
[1748352672935,25.97636502,178.97,178.95,5.58815311]
[1748352673129,2.8076,178.99,178.95,5.58815311]
[1748352673330,2.8076,178.99,178.96,39.26]
[1748352673531,2.8076,178.99,178.97,39.26]
[1748352673844,1012.18865352,179.0,178.99,26.0]
[1748352674048,1012.18865352,179.0,178.99,65.26]
[1748352674624,1012.18865352,179.0,178.99,65.24]
[1748352676070,1038.16501854,179.0,178.99,26.0]
[1748352676432,1038.16501854,179.0,178.99,65.24]
[1748352677258,1012.18865352,179.0,178.99,26.0]
[1748352677430,1038.16501854,179.0,178.99,65.24]
[1748352677781,1038.16501854,179.0,178.99,65.22]
[1748352677962,1038.16501854,179.0,178.99,26.0]
[1748352678136,1038.16501854,179.0,178.99,65.22]
[1748352679150,1038.16501854,179.0,178.99,36.3718]
[1748352679459,1069.01032912,179.0,178.99,21.7429]
[1748352679636,1069.01032912,179.0,178.89,5.59002739]
[1748352679637,18.64964886,178.99,178.89,5.59002739]
[1748352679836,25.97636502,178.93,178.89,5.59002739]
[1748352680110,25.97636502,178.93,178.85,3.85807869]
[1748352680111,25.97636502,178.91,178.85,3.85807869]
[1748352680368,10.7158,178.9,178.85,3.85807869]
[1748352680547,25.97636502,178.87,178.85,3.85807869]
[1748352680867,10.7158,178.9,178.85,3.85807869]
[1748352681043,25.97636502,178.86,178.85,3.85807869]
[1748352681364,25.97636502,178.86,178.85,43.07807869]
[1748352681539,25.97636502,178.86,178.85,69.07807869]
[1748352681737,25.97636502,178.86,178.85,43.07807869]
[1748352681963,25.97636502,178.86,178.85,43.05807869]
[1748352682161,25.97636502,178.86,178.85,39.2]
[1748352682941,25.97636502,178.87,178.85,39.2]
[1748352683254,25.97636502,178.86,178.85,39.2]
[1748352684154,25.97636502,178.86,178.75,13.98567557]
[1748352684340,25.97636502,178.82,178.76,39.2]
[1748352684545,25.97636502,178.82,178.75,13.98567557]
[1748352684745,26.07021728,178.82,178.79,26.0]
[1748352685055,0.55906524,178.87,178.8,39.2]
[1748352685266,26.07021728,178.82,178.8,39.2]
[1748352685442,26.07021728,178.81,178.8,65.2]
[1748352685957,11.4902,178.8,178.7,13.98965109]
[1748352686161,26.07021728,178.76,178.7,13.98965109]
[1748352686355,26.07021728,178.76,178.71,65.27021728]
[1748352686671,11.4902,178.8,178.71,39.2]
[1748352686885,11.4902,178.8,178.72,39.2]
[1748352687071,11.4902,178.8,178.75,26.0]
[1748352687372,11.4902,178.8,178.76,39.2]
[1748352687873,12.04949299,178.8,178.76,39.2]
[1748352688076,11.4902,178.8,178.76,39.2]
[1748352688575,26.07021728,178.79,178.76,39.2]
[1748352688776,11.4902,178.8,178.77,52.07021728]
[1748352688963,12.0,178.82,178.79,26.07021728]
[1748352689165,12.0,178.82,178.8,39.2]
[1748352689872,12.0,178.82,178.8,44.79279176]
[1748352690058,2.7748,178.83,178.8,70.86300904]
[1748352690249,36.69131728,178.85,178.8,70.86300904]
[1748352690657,10.6211,178.85,178.81,52.07021728]
[1748352691262,36.69131728,178.85,178.81,26.0]
[1748352691867,10.6211,178.85,178.81,31.59249095]
[1748352692049,10.6211,178.85,178.81,52.07021728]
[1748352692256,10.6211,178.85,178.81,57.66269111]
[1748352692583,10.6211,178.85,178.81,26.0]
[1748352692801,26.07021728,178.84,178.81,26.0]
[1748352693149,10.6211,178.85,178.81,26.0]
[1748352693369,12.0,178.86,178.84,52.07021728]
[1748352693578,13.4275,178.89,178.85,65.25021728]
[1748352693964,13.4275,178.89,178.86,31.66116845]
[1748352694158,11.9,178.92,178.88,26.07021728]
[1748352694469,11.9,178.92,178.9,26.07021728]
[1748352694873,11.9,178.92,178.89,91.23021728]
[1748352695375,26.07021728,178.91,178.9,39.16]
[1748352695584,26.07021728,178.91,178.83,26.07021728]
[1748352695754,26.07021728,178.9,178.84,65.23021728]
[1748352695958,37.97021728,178.92,178.86,26.07021728]
[1748352696164,37.97021728,178.92,178.87,39.16]
[1748352696351,11.9,178.92,178.88,26.0]
[1748352696551,12.45892231,178.92,178.88,26.0]
[1748352696751,26.07021728,178.9,178.88,26.0]
[1748352696982,26.07021728,178.9,178.89,39.16]
[1748352697369,12.45892231,178.92,178.89,39.16]
[1748352697574,26.07021728,178.91,178.89,39.16]
[1748352697864,11.50918998,178.93,178.89,39.16]
[1748352698055,10.9503,178.93,178.89,65.23021728]
[1748352698257,11.9,178.94,178.9,26.07021728]
[1748352698463,12.45885786,178.94,178.89,65.23021728]
[1748352698666,38.52907514,178.94,178.89,65.23021728]
[1748352698872,26.07021728,178.92,178.9,26.0]
[1748352699186,26.07021728,178.91,178.87,26.0]
[1748352699389,26.07021728,178.89,178.88,39.14]
[1748352699592,26.07021728,178.9,178.88,39.14]
[1748352699761,18.64964886,178.93,178.88,39.14]
[1748352699963,26.62911888,178.93,178.88,65.21021728]
[1748352700157,17.89227757,178.97,178.92,26.07021728]
[1748352700158,16.3532,178.97,178.92,26.07021728]
[1748352700362,16.91196929,178.97,178.93,39.14]
[1748352700679,26.07021728,178.95,178.93,39.14]
[1748352700856,16.91196929,178.97,178.93,39.14]
[1748352701061,16.3532,178.97,178.93,39.14]
[1748352701276,10.9136,178.97,178.93,65.21021728]
[1748352701764,26.07021728,178.99,178.94,26.07021728]
[1748352701989,0.55872164,178.98,178.93,39.14]
[1748352702171,0.55872164,178.98,178.93,65.21021728]
[1748352702576,0.55872164,178.98,178.91,26.07021728]
[1748352702888,26.07021728,178.92,178.86,26.07021728]
[1748352703060,18.64964886,178.97,178.87,39.12]
[1748352703265,0.14216157,178.96,178.87,39.12]
[1748352703466,26.07021728,178.9,178.85,26.07021728]
[1748352703681,26.07021728,178.88,178.83,26.07021728]
[1748352703903,26.07021728,178.87,178.84,39.1]
[1748352704080,26.62929484,178.87,178.82,29.90894874]
[1748352704397,0.55907756,178.87,178.83,39.1]
[1748352704569,0.55907756,178.87,178.82,3.83873146]
[1748352704769,26.62929484,178.87,178.81,26.07021728]
[1748352704969,26.62929484,178.87,178.82,39.1]
[1748352705173,26.07021728,178.86,178.81,26.07021728]
[1748352705377,26.07021728,178.85,178.82,39.1]
[1748352705689,26.07021728,178.85,178.82,65.1]
[1748352706010,26.62929484,178.87,178.81,26.07021728]
[1748352706206,26.62929484,178.87,178.82,39.1]
[1748352706407,26.07021728,178.86,178.82,26.0]
[1748352706589,26.07021728,178.85,178.83,39.1]
[1748352707401,1.95674066,178.87,178.83,39.1]
[1748352707402,0.55907756,178.87,178.83,39.1]
[1748352707576,0.55904201,178.88,178.83,39.1]
[1748352707782,26.62925929,178.88,178.83,39.1]
[1748352707980,26.07021728,178.87,178.83,39.1]
[1748352708412,26.62931378,178.86,178.83,39.1]
[1748352708600,26.07021728,178.85,178.83,39.1]
[1748352709615,0.55900273,178.89,178.83,39.1]
[1748352709779,26.07021728,178.87,178.83,39.1]
[1748352710206,6.32914556,178.91,178.85,26.07021728]
[1748352710506,37.97021728,178.92,178.87,26.07021728]
[1748352710817,11.9,178.92,178.88,65.15021728]
[1748352710983,12.45890946,178.92,178.88,65.15021728]
[1748352711488,26.07021728,178.9,178.87,26.0]
[1748352711787,26.07021728,178.9,178.88,39.08]
[1748352712181,26.07021728,178.9,178.89,39.08]
[1748352712397,26.62918877,178.9,178.84,26.07021728]
[1748352712706,26.07021728,178.87,178.85,39.06]
[1748352713000,26.07021728,178.86,178.8,26.07021728]
[1748352713178,26.07021728,178.85,178.81,39.06]
[1748352713377,0.14216157,178.89,178.82,26.0]
[1748352713378,26.07021728,178.86,178.82,26.0]
[1748352713789,26.07021728,178.86,178.81,65.13021728]
[1748352713790,11.9,178.89,178.84,52.07021728]
[1748352713992,26.07021728,178.88,178.85,39.06]
[1748352714314,26.07021728,178.86,178.85,39.06]
[1748352714610,26.62931378,178.86,178.85,39.06]
[1748352716312,18.64964886,178.85,178.74,3.87001136]
[1748352716481,26.07021728,178.8,178.74,3.87001136]
[1748352716683,26.07021728,178.8,178.75,65.11021728]
[1748352717094,26.07021728,178.79,178.75,65.04]
[1748352717298,26.07021728,178.79,178.76,39.04]
[1748352717499,26.07021728,178.79,178.77,39.04]
[1748352718111,26.07021728,178.78,178.77,39.04]
[1748352718588,0.55934668,178.78,178.77,26.0]
[1748352719085,26.62956396,178.78,178.77,26.0]
[1748352719300,26.62956396,178.78,178.77,65.04]
[1748352719494,26.07021728,178.8,178.77,65.04]
[1748352719689,26.62950222,178.8,178.77,65.04]
[1748352720123,26.07021728,178.8,178.77,65.04]
[1748352720302,19.20890896,178.81,178.77,65.04]
[1748352720303,45.27912332,178.81,178.77,65.04]
[1748352720691,37.97021728,178.82,178.77,91.11021728]
[1748352721109,11.9,178.82,178.78,26.07021728]
[1748352721424,11.9,178.87,178.81,26.07021728]
[1748352721623,11.9,178.87,178.85,26.0]
[1748352721822,11.9,178.87,178.86,39.04]
[1748352722698,11.9,178.87,178.86,65.11021728]
[1748352723090,11.9,178.87,178.86,39.04]
[1748352723430,11.9,178.87,178.86,65.11021728]
[1748352724294,92.22,178.99,178.89,26.0]
[1748352724527,92.22,178.99,178.96,52.07021728]
[1748352724732,92.22,178.99,178.97,65.09021728]
[1748352725227,12.35870412,178.99,178.97,65.09021728]
[1748352725401,12.35870412,178.99,178.97,39.02]
[1748352725826,26.07021728,178.98,178.97,39.02]
[1748352726012,38.4289214,178.99,178.97,39.02]
[1748352726205,38.4289214,178.99,178.94,26.07021728]
[1748352726409,57.07857026,178.99,178.95,39.0]
[1748352726841,26.07021728,178.96,178.91,26.0]
[1748352727136,18.64964886,178.91,178.83,3.87898303]
[1748352727301,30.42964886,178.9,178.84,39.0]
[1748352727506,18.64964886,178.89,178.83,3.87898303]
[1748352727812,11.78,178.9,178.85,39.0]
[1748352728009,11.78,178.9,178.88,26.07021728]
[1748352728208,11.78,178.9,178.89,39.0]
[1748352728807,12.33897149,178.9,178.89,39.0]
[1748352729557,285.6739332,179.11,178.89,39.0]
[1748352729558,1022.90975352,179.0,178.92,26.0]
[1748352729709,26.07021728,178.99,178.94,26.07021728]
[1748352730146,26.07021728,178.97,178.93,38.98]
[1748352730300,26.07021728,178.94,178.89,26.07021728]
[1748352730503,26.07021728,178.92,178.9,38.98]
[1748352730926,1.95596289,178.94,178.9,38.98]
[1748352731142,26.07021728,178.93,178.9,38.98]
[1748352731509,26.07021728,178.91,178.8,5.4062]
[1748352731735,26.07021728,178.87,178.8,5.4062]
[1748352731937,37.85021728,178.9,178.84,26.07021728]
[1748352732140,11.78,178.9,178.89,52.07021728]
[1748352732444,11.78,178.9,178.89,91.03021728]
[1748352733016,1.3968887,178.97,178.89,91.03021728]
[1748352733017,38.40900136,178.96,178.89,91.03021728]
[1748352733223,26.07021728,178.95,178.9,26.07021728]
[1748352733730,26.07021728,178.95,178.89,64.96]
[1748352734032,39.80596157,178.96,178.9,26.07021728]
[1748352734217,26.07021728,178.95,178.9,26.07021728]
[1748352734612,39.80596157,178.96,178.91,26.07021728]
[1748352734809,12.33878408,178.96,178.94,26.07021728]
[1748352735012,12.33878408,178.96,178.95,38.96]
[1748352735314,11.78,178.96,178.95,64.96]
[1748352735513,1022.90975352,179.0,178.95,64.96]
[1748352735514,1012.747315,179.0,178.95,91.03021728]
[1748352735715,1012.747315,179.0,178.97,26.07021728]
[1748352735920,1012.747315,179.0,178.98,65.03021728]
[1748352736144,1012.18865352,179.0,178.99,26.07021728]
[1748352737020,1012.18865352,179.0,178.95,5.58808024]
[1748352737021,1012.74731273,179.0,178.97,26.07021728]
[1748352737221,1038.81753001,179.0,178.95,52.07021728]
[1748352737430,1038.81753001,179.0,178.95,26.0]
[1748352737431,1040.21417805,179.0,178.95,26.0]
[1748352737642,1012.74731273,179.0,178.97,52.07021728]
[1748352738012,1012.74731273,179.0,178.97,26.0]
[1748352738354,1012.74731273,179.0,178.98,65.01021728]
[1748352738845,1012.74731273,179.0,178.99,38.94]
[1748352739007,1038.81753001,179.0,178.97,26.0]
[1748352739212,1012.18865352,179.0,178.99,26.07021728]
[1748352739442,858.53961412,179.0,178.99,26.07021728]
[1748352739748,858.53961412,179.0,178.99,37.70441728]
[1748352739911,836.68703232,179.0,178.99,170.91554499]
[1748352740115,784.58434021,179.0,178.99,170.91554499]
[1748352740337,774.20214021,179.0,178.99,165.26644499]
[1748352740638,725.37704021,179.0,178.99,175.26644499]
[1748352740938,711.42968649,179.0,178.99,180.85334928]
[1748352741317,590.3207636,179.0,178.99,188.82064077]
[1748352741515,540.89666526,179.0,178.99,340.8974438]
[1748352741713,524.63666526,179.0,178.99,340.8974438]
[1748352741926,507.77648099,179.0,178.99,367.50623806]
[1748352742328,336.49044159,179.0,178.99,367.50623806]
[1748352742529,329.47044159,179.0,178.99,373.34958701]
[1748352742857,165.42286847,179.0,178.99,385.87609618]
[1748352743014,106.45739228,179.0,178.99,381.99929315]
[1748352743215,103.66997665,179.0,178.99,381.99929315]
[1748352743450,89.73289865,179.0,178.99,375.37472844]
[1748352743748,80.18338302,179.0,178.99,375.37472844]
[1748352744253,22.24016635,179.0,178.99,375.37472844]
[1748352744749,5.52033589,179.0,178.99,375.37472844]
[1748352744955,2.0,179.1,179.08,26.0]
[1748352745121,2.0,179.1,179.09,84.00056066]
[1748352745322,241.20448179,179.11,179.1,18.64964886]
[1748352745556,136.01678985,179.11,179.09,44.62594625]
[1748352745742,136.01678985,179.11,179.1,39.37461441]
[1748352746630,136.01678985,179.11,179.09,5.58378468]
[1748352746963,136.01678985,179.11,179.1,78.23461441]
[1748352747267,136.01678985,179.11,179.09,26.0]
[1748352747445,136.01678985,179.11,179.1,39.37461441]
[1748352747634,136.01678985,179.11,179.1,78.23461441]
[1748352748122,136.01678985,179.11,179.1,39.37461441]
[1748352748319,136.01678985,179.11,179.1,78.23461441]
[1748352749364,136.01678985,179.11,179.1,44.95808733]
[1748352749532,136.01678985,179.11,179.1,83.79808733]
[1748352751475,102.19078985,179.11,179.1,83.9402489]
[1748352752642,102.19078985,179.11,179.1,83.79808733]
[1748352753335,102.19078985,179.11,179.1,44.95808733]
[1748352753535,102.19078985,179.11,179.1,83.77808733]
[1748352753759,102.19078985,179.11,179.04,82.7]
[1748352753946,141.56540426,179.11,179.06,39.37461441]
[1748352754346,39.37461441,179.1,179.07,38.82]
[1748352754736,39.37461441,179.1,179.09,26.0]
[1748352754943,39.37461441,179.1,179.09,38.82]
[1748352755173,39.37461441,179.1,179.03,5.58560374]
[1748352755363,0.55840964,179.08,179.04,38.82]
[1748352755663,39.93302405,179.08,179.07,26.0]
[1748352755862,39.37461441,179.08,179.03,39.37461441]
[1748352756064,0.55834729,179.1,178.94,25.65079039]
[1748352756065,39.37461441,179.05,178.94,25.65079039]
[1748352756250,5.6615,179.07,178.95,38.8]
[1748352756251,11.6816,179.03,178.95,38.8]
[1748352756451,11.6816,179.03,179.02,26.0]
[1748352756761,11.6816,179.03,179.0,39.37461441]
[1748352757139,11.6816,179.03,179.01,78.17461441]
[1748352757346,11.6816,179.03,179.01,38.8]
[1748352758274,5.6615,179.07,179.05,26.0]
[1748352758569,45.03611441,179.07,179.06,38.8]
[1748352759165,11.39,179.08,179.06,38.8]
[1748352759485,11.39,179.08,179.07,26.0]
[1748352759653,108.01198985,179.11,179.07,39.37461441]
[1748352759859,108.01198985,179.11,179.1,65.37461441]
[1748352760068,108.01198985,179.11,179.1,64.8]
[1748352760836,108.01198985,179.11,179.1,104.17461441]
[1748352761040,102.19078985,179.11,179.1,104.17461441]
[1748352761547,102.19078985,179.11,179.1,109.75808733]
[1748352762359,102.19078985,179.11,179.1,109.73808733]
[1748352762558,102.19078985,179.11,179.1,109.73808708]
[1748352763959,102.19078985,179.11,179.1,70.36347267]
[1748352764146,102.19078985,179.11,179.1,109.73808708]
[1748352764572,75.38678985,179.11,179.1,109.88024865]
[1748352765265,75.38678985,179.11,179.1,109.73808708]
[1748352766445,75.38678985,179.11,179.1,143.31808708]
[1748352766643,75.38678985,179.11,179.1,128.52989751]
[1748352766963,3.98697607,179.12,179.11,18.79181043]
[1748352767269,3.98697607,179.12,179.11,141.42432876]
[1748352767448,3.98697607,179.12,179.11,58.16642484]
[1748352767644,3.98697607,179.12,179.11,45.09993716]
[1748352767875,3.93856244,179.18,179.14,26.0]
[1748352768043,3.93856244,179.18,179.17,65.37461441]
[1748352768243,3.93856244,179.18,179.17,104.13461441]
[1748352769954,3.93856244,179.18,179.17,90.7122125]
[1748352770152,3.93856244,179.18,179.17,96.29350401]
[1748352771084,3.93856244,179.18,179.14,26.0]
[1748352771373,3.93856244,179.18,179.17,25.9522125]
[1748352771573,3.93856244,179.18,179.17,64.6922125]
[1748352771874,3.93856244,179.18,179.17,70.27350401]
[1748352773371,5.3339,179.23,179.2,26.0]
[1748352773680,16.63612942,179.26,179.25,26.0]
[1748352773980,43.14619085,179.26,179.16,5.5813539]
[1748352774187,25.9522125,179.23,179.13,5.58253782]
[1748352774374,25.9522125,179.21,179.16,51.9522125]
[1748352774577,25.9522125,179.22,179.16,51.9522125]
[1748352774753,25.9522125,179.22,179.17,90.6722125]
[1748352775083,25.9522125,179.21,179.18,38.72]
[1748352775266,31.7510125,179.19,179.13,25.9522125]
[1748352775452,25.9522125,179.16,179.11,25.9522125]
[1748352775789,0.55818503,179.16,179.12,64.6722125]
[1748352775956,0.55818503,179.16,179.15,26.0]
[1748352776156,0.55818503,179.16,179.15,38.72]